[Event "Early-Titled-Tuesday-Blitz-January-30-2024"]
[Site "Chess.com"]
[Date "2024.01.30"]
[Round "1"]
[White "toninhojit"]
[Black "olawsson"]
[Result "1-0"]
[WhiteElo "2580"]
[BlackElo "2163"]
[TimeControl "180+1"]
[EndTime "8:06:53 PST"]
[Termination "toninhojit won on time"]

1. d4 {[%clk 0:03:00.9]} 1... d6 {[%clk 0:02:59.7]} 2. c4 {[%clk 0:02:58.5]}
2... g6 {[%clk 0:02:59.3]} 3. Nc3 {[%clk 0:02:56.8]} 3... Bg7 {[%clk 0:02:59.8]}
4. e4 {[%clk 0:02:57.4]} 4... Nc6 {[%clk 0:02:59.3]} 5. Nge2 {[%clk 0:02:54.3]}
5... e5 {[%clk 0:02:57.4]} 6. d5 {[%clk 0:02:54.8]} 6... Nce7 {[%clk 0:02:56.1]}
7. Be3 {[%clk 0:02:55.1]} 7... f5 {[%clk 0:02:56]} 8. f3 {[%clk 0:02:55.8]} 8...
Nf6 {[%clk 0:02:56.4]} 9. Qd2 {[%clk 0:02:56.3]} 9... O-O {[%clk 0:02:56.1]} 10.
O-O-O {[%clk 0:02:53.4]} 10... fxe4 {[%clk 0:02:52.6]} 11. Nxe4 {[%clk
0:02:48.8]} 11... Nf5 {[%clk 0:02:48.7]} 12. Bg5 {[%clk 0:02:45.3]} 12... Nxe4
{[%clk 0:02:32.6]} 13. fxe4 {[%clk 0:02:44.7]} 13... Qxg5 {[%clk 0:02:33.2]} 14.
Qxg5 {[%clk 0:02:43.9]} 14... Bh6 {[%clk 0:02:33.4]} 15. Qxh6 {[%clk 0:02:43.4]}
15... Nxh6 {[%clk 0:02:33.3]} 16. h3 {[%clk 0:02:41.3]} 16... Kg7 {[%clk
0:02:14.4]} 17. Kd2 {[%clk 0:02:41.1]} 17... Bd7 {[%clk 0:02:12.9]} 18. Ke3
{[%clk 0:02:39.8]} 18... Rf7 {[%clk 0:01:40.7]} 19. Nc3 {[%clk 0:02:38.6]} 19...
Raf8 {[%clk 0:01:40.3]} 20. Be2 {[%clk 0:02:39.3]} 20... Rf2 {[%clk 0:01:32]}
21. Rhg1 {[%clk 0:02:39]} 21... Ng8 {[%clk 0:01:18]} 22. Rdf1 {[%clk 0:02:38.4]}
22... Rxf1 {[%clk 0:01:07.2]} 23. Rxf1 {[%clk 0:02:39.3]} 23... Rxf1 {[%clk
0:01:06.6]} 24. Bxf1 {[%clk 0:02:40.2]} 24... h5 {[%clk 0:01:01.9]} 25. b4
{[%clk 0:02:35.5]} 25... h4 {[%clk 0:00:56.7]} 26. Be2 {[%clk 0:02:32.4]} 26...
Kf6 {[%clk 0:00:53]} 27. a4 {[%clk 0:02:21.2]} 27... Ke7 {[%clk 0:00:47.3]} 28.
a5 {[%clk 0:02:20.8]} 28... Nf6 {[%clk 0:00:41.3]} 29. Bf3 {[%clk 0:02:14.8]}
29... g5 {[%clk 0:00:30.1]} 30. Ne2 {[%clk 0:01:51.2]} 30... Ba4 {[%clk
0:00:25.9]} 31. Kd3 {[%clk 0:01:48.2]} 31... Bb3 {[%clk 0:00:22.6]} 32. Nc1
{[%clk 0:01:42]} 32... Ba4 {[%clk 0:00:17.1]} 33. b5 {[%clk 0:01:42.6]} 33... a6
{[%clk 0:00:16.3]} 34. bxa6 {[%clk 0:01:36.7]} 34... bxa6 {[%clk 0:00:16.3]} 35.
Na2 {[%clk 0:01:36.7]} 35... c5 {[%clk 0:00:12]} 36. dxc6 {[%clk 0:01:23.4]}
36... Bxc6 {[%clk 0:00:11.7]} 37. Nb4 {[%clk 0:01:24.3]} 37... Bb7 {[%clk
0:00:12]} 38. Ke3 {[%clk 0:01:16]} 38... Kd7 {[%clk 0:00:10.8]} 39. Nd3 {[%clk
0:01:12.3]} 39... Kc6 {[%clk 0:00:09.8]} 40. c5 {[%clk 0:01:12.9]} 40... Nd7
{[%clk 0:00:07.2]} 41. cxd6 {[%clk 0:01:08.7]} 41... Kxd6 {[%clk 0:00:07.5]} 42.
Be2 {[%clk 0:00:59]} 42... Nc5 {[%clk 0:00:05.5]} 43. Nb4 {[%clk 0:00:59.5]} 1-0

[Event "Early-Titled-Tuesday-Blitz-January-30-2024"]
[Site "Chess.com"]
[Date "2024.01.30"]
[Round "1"]
[White "CaspiIsrael"]
[Black "Arimin1329"]
[Result "1-0"]
[WhiteElo "2755"]
[BlackElo "2414"]
[TimeControl "180+1"]
[EndTime "8:06:54 PST"]
[Termination "CaspiIsrael won by resignation"]

1. e4 {[%clk 0:03:00.9]} 1... c6 {[%clk 0:02:59.7]} 2. d3 {[%clk 0:02:59.8]}
2... d5 {[%clk 0:03:00.6]} 3. Nd2 {[%clk 0:03:00.3]} 3... e5 {[%clk 0:02:59]} 4.
Ngf3 {[%clk 0:03:00.5]} 4... Bg4 {[%clk 0:02:55.3]} 5. h3 {[%clk 0:02:59.9]}
5... Bxf3 {[%clk 0:02:55.4]} 6. Qxf3 {[%clk 0:02:49.6]} 6... Nf6 {[%clk
0:02:55.4]} 7. g3 {[%clk 0:02:48.5]} 7... Bb4 {[%clk 0:02:52.5]} 8. c3 {[%clk
0:02:47]} 8... Bc5 {[%clk 0:02:48.4]} 9. Bg2 {[%clk 0:02:46.5]} 9... dxe4 {[%clk
0:02:45.3]} 10. dxe4 {[%clk 0:02:41]} 10... Nbd7 {[%clk 0:02:43.2]} 11. O-O
{[%clk 0:02:40.6]} 11... O-O {[%clk 0:02:43.5]} 12. a4 {[%clk 0:02:35.9]} 12...
a5 {[%clk 0:02:42.6]} 13. Rd1 {[%clk 0:02:32.5]} 13... Qb6 {[%clk 0:02:41.7]}
14. b3 {[%clk 0:02:06.6]} 14... Rfd8 {[%clk 0:02:37.9]} 15. Rb1 {[%clk
0:02:06.9]} 15... Qc7 {[%clk 0:02:32.5]} 16. Nc4 {[%clk 0:02:04.3]} 16... Nf8
{[%clk 0:02:29.9]} 17. Bg5 {[%clk 0:02:02.5]} 17... Be7 {[%clk 0:02:20.5]} 18.
Be3 {[%clk 0:01:58.2]} 18... Rxd1+ {[%clk 0:02:06.6]} 19. Rxd1 {[%clk
0:01:57.8]} 19... b5 {[%clk 0:02:07.2]} 20. Nb2 {[%clk 0:01:44.8]} 20... Rd8
{[%clk 0:01:55.7]} 21. g4 {[%clk 0:01:41.3]} 21... Ne6 {[%clk 0:01:45.1]} 22. g5
{[%clk 0:01:37.6]} 22... Nd7 {[%clk 0:01:36.2]} 23. h4 {[%clk 0:01:37.5]} 23...
Bc5 {[%clk 0:01:25.6]} 24. Bc1 {[%clk 0:01:33.7]} 24... Ndf8 {[%clk 0:01:18.9]}
25. Bf1 {[%clk 0:01:28.3]} 25... Qb7 {[%clk 0:00:56.4]} 26. Rxd8 {[%clk
0:01:26.4]} 26... Nxd8 {[%clk 0:00:56.3]} 27. Qd3 {[%clk 0:01:06]} 27... Nde6
{[%clk 0:00:52.5]} 28. axb5 {[%clk 0:01:05.1]} 28... cxb5 {[%clk 0:00:53.4]} 29.
Qxb5 {[%clk 0:01:00.2]} 29... Qxe4 {[%clk 0:00:49.9]} 30. Qc4 {[%clk 0:00:59.3]}
30... Qb1 {[%clk 0:00:22.9]} 31. Nd3 {[%clk 0:00:54.9]} 31... Bb6 {[%clk
0:00:23.1]} 32. Qb5 {[%clk 0:00:49.7]} 32... Ba7 {[%clk 0:00:21.2]} 33. Qxa5
{[%clk 0:00:48.6]} 33... e4 {[%clk 0:00:18.3]} 34. Qxa7 {[%clk 0:00:43.9]} 34...
exd3 {[%clk 0:00:18.7]} 35. Qe3 {[%clk 0:00:44.5]} 35... Qxb3 {[%clk 0:00:15.9]}
36. Qxd3 {[%clk 0:00:44.4]} 36... Ng6 {[%clk 0:00:14]} 37. h5 {[%clk 0:00:43.2]}
37... Ngf4 {[%clk 0:00:13.5]} 38. Bxf4 {[%clk 0:00:42.9]} 1-0

[Event "Early-Titled-Tuesday-Blitz-January-30-2024"]
[Site "Chess.com"]
[Date "2024.01.30"]
[Round "1"]
[White "ViIIagra"]
[Black "GiorgianBarbosa"]
[Result "1-0"]
[WhiteElo "2948"]
[BlackElo "2510"]
[TimeControl "180+1"]
[EndTime "8:06:57 PST"]
[Termination "ViIIagra won on time"]

1. g3 {[%clk 0:03:00.9]} 1... Nf6 {[%clk 0:02:59.3]} 2. Bg2 {[%clk 0:02:38]}
2... d5 {[%clk 0:03:00]} 3. f4 {[%clk 0:02:35.6]} 3... c5 {[%clk 0:02:54.5]} 4.
Nf3 {[%clk 0:02:35.2]} 4... Nc6 {[%clk 0:02:55]} 5. d3 {[%clk 0:02:35]} 5... g6
{[%clk 0:02:53.9]} 6. c3 {[%clk 0:02:06.2]} 6... Bg7 {[%clk 0:02:54.8]} 7. Qc2
{[%clk 0:02:06.4]} 7... O-O {[%clk 0:02:54.5]} 8. e4 {[%clk 0:02:06.6]} 8... c4
{[%clk 0:02:38.1]} 9. e5 {[%clk 0:01:56.5]} 9... cxd3 {[%clk 0:02:36.8]} 10.
Qxd3 {[%clk 0:01:57.4]} 10... Bf5 {[%clk 0:02:36.2]} 11. Qe2 {[%clk 0:01:56.8]}
11... Ne4 {[%clk 0:02:33.2]} 12. Nh4 {[%clk 0:01:50.1]} 12... Nc5 {[%clk
0:02:14.2]} 13. Nxf5 {[%clk 0:01:42.9]} 13... gxf5 {[%clk 0:02:15.1]} 14. O-O
{[%clk 0:01:42.3]} 14... d4 {[%clk 0:02:06.4]} 15. Rd1 {[%clk 0:01:42.2]} 15...
Ne6 {[%clk 0:02:00.6]} 16. cxd4 {[%clk 0:01:37]} 16... Ncxd4 {[%clk 0:01:58.1]}
17. Qf2 {[%clk 0:01:36.2]} 17... Qc7 {[%clk 0:01:47.8]} 18. Nc3 {[%clk
0:01:33.7]} 18... Rfd8 {[%clk 0:01:45.2]} 19. Be3 {[%clk 0:01:31.4]} 19... Nc6
{[%clk 0:01:30.8]} 20. Nd5 {[%clk 0:01:31.5]} 20... Qa5 {[%clk 0:01:29.2]} 21.
a3 {[%clk 0:01:30.8]} 21... Rd7 {[%clk 0:01:18.4]} 22. Nf6+ {[%clk 0:01:25.3]}
22... exf6 {[%clk 0:01:16.1]} 23. Rxd7 {[%clk 0:01:26.2]} 23... fxe5 {[%clk
0:01:15.6]} 24. fxe5 {[%clk 0:01:14]} 24... Nxe5 {[%clk 0:01:11.6]} 25. Qxf5
{[%clk 0:01:08.9]} 25... Qa4 {[%clk 0:00:42.4]} 26. Rxb7 {[%clk 0:01:01.7]}
26... Rf8 {[%clk 0:00:36.3]} 27. Rf1 {[%clk 0:01:01.3]} 27... Ng4 {[%clk
0:00:34.9]} 28. Bxa7 {[%clk 0:00:56.3]} 28... Bd4+ {[%clk 0:00:16.5]} 29. Kh1
{[%clk 0:00:36.7]} 29... Bxa7 {[%clk 0:00:06.4]} 30. Rxf7 {[%clk 0:00:33]} 1-0

[Event "Early-Titled-Tuesday-Blitz-January-30-2024"]
[Site "Chess.com"]
[Date "2024.01.30"]
[Round "1"]
[White "Abund"]
[Black "epiclord678"]
[Result "1-0"]
[WhiteElo "2768"]
[BlackElo "2422"]
[TimeControl "180+1"]
[EndTime "8:06:57 PST"]
[Termination "Abund won on time"]

1. e4 {[%clk 0:03:00.9]} 1... c5 {[%clk 0:02:59.4]} 2. Nf3 {[%clk 0:03:00.7]}
2... d6 {[%clk 0:02:59.4]} 3. d4 {[%clk 0:03:01.1]} 3... cxd4 {[%clk 0:03:00.3]}
4. Nxd4 {[%clk 0:03:02]} 4... Nf6 {[%clk 0:03:00.8]} 5. Nc3 {[%clk 0:03:02.5]}
5... a6 {[%clk 0:03:01.2]} 6. Bd3 {[%clk 0:03:00.7]} 6... e5 {[%clk 0:02:58]} 7.
Nde2 {[%clk 0:03:00.8]} 7... Be7 {[%clk 0:02:53]} 8. O-O {[%clk 0:02:59.7]} 8...
O-O {[%clk 0:02:50.3]} 9. Ng3 {[%clk 0:02:58.6]} 9... b5 {[%clk 0:02:45.2]} 10.
a3 {[%clk 0:02:45.4]} 10... Be6 {[%clk 0:02:43.8]} 11. h3 {[%clk 0:02:37.3]}
11... Nbd7 {[%clk 0:02:41.3]} 12. Qf3 {[%clk 0:02:31.3]} 12... Nb6 {[%clk
0:02:28.2]} 13. Nf5 {[%clk 0:02:21.1]} 13... d5 {[%clk 0:01:41.3]} 14. Nxe7+
{[%clk 0:02:14.2]} 14... Qxe7 {[%clk 0:01:40.9]} 15. Bg5 {[%clk 0:02:14.9]}
15... d4 {[%clk 0:01:12]} 16. Ne2 {[%clk 0:02:11.2]} 16... Nbd7 {[%clk
0:01:06.5]} 17. Qg3 {[%clk 0:02:11]} 17... Kh8 {[%clk 0:01:06.1]} 18. f4 {[%clk
0:02:10]} 18... exf4 {[%clk 0:01:02.5]} 19. Rxf4 {[%clk 0:01:35.4]} 19... Qc5
{[%clk 0:00:54.4]} 20. Qh4 {[%clk 0:01:22.5]} 20... Bc4 {[%clk 0:00:37]} 21. e5
{[%clk 0:01:03.2]} 21... Qxe5 {[%clk 0:00:18.4]} 22. Rf5 {[%clk 0:00:55.4]}
22... Qc7 {[%clk 0:00:08.1]} 23. Raf1 {[%clk 0:00:45]} 23... Bxd3 {[%clk
0:00:08]} 24. cxd3 {[%clk 0:00:45.9]} 24... Qc6 {[%clk 0:00:04.6]} 25. Rxf6
{[%clk 0:00:41.4]} 25... gxf6 {[%clk 0:00:04.1]} 26. Rxf6 {[%clk 0:00:39.4]}
26... Qd5 {[%clk 0:00:01.9]} 27. Nf4 {[%clk 0:00:28.9]} 27... Qe5 {[%clk
0:00:01.4]} 28. Rh6 {[%clk 0:00:26.3]} 28... Qe3+ {[%clk 0:00:01.8]} 29. Kh2
{[%clk 0:00:26.3]} 1-0

[Event "Early-Titled-Tuesday-Blitz-January-30-2024"]
[Site "Chess.com"]
[Date "2024.01.30"]
[Round "1"]
[White "artin10862"]
[Black "Noki102"]
[Result "1-0"]
[WhiteElo "2855"]
[BlackElo "2474"]
[TimeControl "180+1"]
[EndTime "8:06:58 PST"]
[Termination "artin10862 won on time"]

1. e4 {[%clk 0:03:00.9]} 1... e5 {[%clk 0:02:59.5]} 2. Nf3 {[%clk 0:03:00.2]}
2... Nc6 {[%clk 0:02:59.9]} 3. Bb5 {[%clk 0:03:00.3]} 3... a6 {[%clk 0:02:59.3]}
4. Ba4 {[%clk 0:02:59.8]} 4... g6 {[%clk 0:02:59.7]} 5. c3 {[%clk 0:02:51.2]}
5... Bg7 {[%clk 0:02:56.2]} 6. d4 {[%clk 0:02:44.3]} 6... b5 {[%clk 0:02:51.6]}
7. Bb3 {[%clk 0:02:39.7]} 7... exd4 {[%clk 0:02:50.8]} 8. cxd4 {[%clk
0:02:39.5]} 8... Na5 {[%clk 0:02:51.5]} 9. O-O {[%clk 0:02:33.4]} 9... Ne7
{[%clk 0:02:44.8]} 10. Bg5 {[%clk 0:02:29.6]} 10... h6 {[%clk 0:02:41.3]} 11.
Bh4 {[%clk 0:02:16.7]} 11... Nxb3 {[%clk 0:02:35.6]} 12. Qxb3 {[%clk 0:02:16.3]}
12... O-O {[%clk 0:02:36]} 13. Nc3 {[%clk 0:02:16]} 13... Qe8 {[%clk 0:02:26]}
14. Rfe1 {[%clk 0:01:55.4]} 14... d6 {[%clk 0:02:13.7]} 15. Nd5 {[%clk
0:01:55.1]} 15... Nxd5 {[%clk 0:02:04.6]} 16. exd5 {[%clk 0:01:56]} 16... Qd7
{[%clk 0:02:04.4]} 17. Re7 {[%clk 0:01:56.3]} 17... Qg4 {[%clk 0:02:01.1]} 18.
h3 {[%clk 0:01:41.2]} 18... Qh5 {[%clk 0:01:46]} 19. Rxc7 {[%clk 0:01:30]} 19...
Re8 {[%clk 0:01:28.5]} 20. g4 {[%clk 0:01:12]} 20... Bxg4 {[%clk 0:01:25.1]} 21.
hxg4 {[%clk 0:01:12.9]} 21... Qxg4+ {[%clk 0:01:25.2]} 22. Bg3 {[%clk
0:01:13.3]} 22... f5 {[%clk 0:01:14.9]} 23. Kh1 {[%clk 0:01:09.3]} 23... f4
{[%clk 0:01:12.9]} 24. Bh2 {[%clk 0:01:08.1]} 24... Re3 {[%clk 0:01:04.2]} 25.
fxe3 {[%clk 0:00:32.1]} 25... Qxf3+ {[%clk 0:01:03]} 26. Kg1 {[%clk 0:00:32.8]}
26... fxe3 {[%clk 0:00:53.3]} 27. Qc2 {[%clk 0:00:28.3]} 27... Kh7 {[%clk
0:00:09.2]} 28. Rf1 {[%clk 0:00:25.8]} 28... Qg4+ {[%clk 0:00:04.4]} 29. Kh1
{[%clk 0:00:24.7]} 1-0

[Event "Early-Titled-Tuesday-Blitz-January-30-2024"]
[Site "Chess.com"]
[Date "2024.01.30"]
[Round "1"]
[White "Alexchess1984"]
[Black "amanjazu"]
[Result "1-0"]
[WhiteElo "2741"]
[BlackElo "2404"]
[TimeControl "180+1"]
[EndTime "8:07:00 PST"]
[Termination "Alexchess1984 won by checkmate"]

1. e4 {[%clk 0:03:00.9]} 1... Nf6 {[%clk 0:02:58.5]} 2. e5 {[%clk 0:02:59.9]}
2... Nd5 {[%clk 0:02:59]} 3. d4 {[%clk 0:03:00.7]} 3... d6 {[%clk 0:02:52.9]} 4.
Bc4 {[%clk 0:03:00.6]} 4... Nb6 {[%clk 0:02:52.3]} 5. Bb3 {[%clk 0:02:59.8]}
5... dxe5 {[%clk 0:02:51.1]} 6. Qh5 {[%clk 0:03:00.3]} 6... e6 {[%clk
0:02:47.5]} 7. dxe5 {[%clk 0:03:00.6]} 7... Nc6 {[%clk 0:02:44.5]} 8. Nf3 {[%clk
0:02:59.1]} 8... Be7 {[%clk 0:02:40.7]} 9. O-O {[%clk 0:02:57.6]} 9... O-O
{[%clk 0:02:40.7]} 10. Nc3 {[%clk 0:02:53.5]} 10... Na5 {[%clk 0:02:27.5]} 11.
Rd1 {[%clk 0:02:52.5]} 11... Bd7 {[%clk 0:02:25]} 12. Ng5 {[%clk 0:02:42.9]}
12... h6 {[%clk 0:01:53.4]} 13. Nge4 {[%clk 0:02:40.7]} 13... Nxb3 {[%clk
0:01:51.2]} 14. axb3 {[%clk 0:02:40.1]} 14... f5 {[%clk 0:01:46.2]} 15. exf6
{[%clk 0:02:37.1]} 15... Bxf6 {[%clk 0:01:46.5]} 16. Rd3 {[%clk 0:02:25.2]}
16... Qe8 {[%clk 0:01:35]} 17. Qxe8 {[%clk 0:02:14.2]} 17... Bxe8 {[%clk
0:01:31.4]} 18. Bf4 {[%clk 0:02:07.7]} 18... e5 {[%clk 0:01:23.7]} 19. Nxf6+
{[%clk 0:02:05.4]} 19... gxf6 {[%clk 0:01:24.6]} 20. Bxh6 {[%clk 0:02:05.2]}
20... Rf7 {[%clk 0:01:25.1]} 21. Be3 {[%clk 0:02:03.5]} 21... Bc6 {[%clk
0:01:23.3]} 22. f3 {[%clk 0:02:00.3]} 22... Rg7 {[%clk 0:01:17.6]} 23. Bxb6
{[%clk 0:01:58.2]} 23... cxb6 {[%clk 0:01:16.2]} 24. Kf2 {[%clk 0:01:57.4]}
24... Kf7 {[%clk 0:01:14.7]} 25. Ne2 {[%clk 0:01:50.1]} 25... Ke6 {[%clk
0:01:12.4]} 26. Re1 {[%clk 0:01:36.7]} 26... Rag8 {[%clk 0:01:11.2]} 27. g3
{[%clk 0:01:32.8]} 27... Rh7 {[%clk 0:01:08.7]} 28. h4 {[%clk 0:01:32.1]} 28...
Rhg7 {[%clk 0:01:01.7]} 29. g4 {[%clk 0:01:27.3]} 29... Rh7 {[%clk 0:00:54.2]}
30. Nd4+ {[%clk 0:01:24.3]} 30... Ke7 {[%clk 0:00:50.2]} 31. Nf5+ {[%clk
0:01:25.2]} 31... Ke6 {[%clk 0:00:48]} 32. h5 {[%clk 0:01:11.2]} 32... e4 {[%clk
0:00:43.5]} 33. Ng3 {[%clk 0:01:03.7]} 33... f5 {[%clk 0:00:23.7]} 34. Nxf5
{[%clk 0:00:47.5]} 34... Kf6 {[%clk 0:00:20.4]} 35. Rd6+ {[%clk 0:00:46.3]}
35... Ke5 {[%clk 0:00:19.9]} 36. Kg3 {[%clk 0:00:35.2]} 36... Rf8 {[%clk
0:00:15.1]} 37. f4# {[%clk 0:00:34.4]} 1-0

[Event "Early-Titled-Tuesday-Blitz-January-30-2024"]
[Site "Chess.com"]
[Date "2024.01.30"]
[Round "1"]
[White "GP9isback23"]
[Black "margarita_2703"]
[Result "1/2-1/2"]
[WhiteElo "2628"]
[BlackElo "2318"]
[TimeControl "180+1"]
[EndTime "8:07:02 PST"]
[Termination "Game drawn by repetition"]

1. Nf3 {[%clk 0:03:00.9]} 1... d5 {[%clk 0:02:59.9]} 2. b3 {[%clk 0:03:00.8]}
2... Bg4 {[%clk 0:02:58]} 3. Bb2 {[%clk 0:02:58.8]} 3... Nd7 {[%clk 0:02:55]} 4.
d4 {[%clk 0:02:58.1]} 4... Ngf6 {[%clk 0:02:53.5]} 5. Nbd2 {[%clk 0:02:58.6]}
5... e6 {[%clk 0:02:53.6]} 6. e3 {[%clk 0:02:57.2]} 6... Bd6 {[%clk 0:02:53.6]}
7. Be2 {[%clk 0:02:57.5]} 7... O-O {[%clk 0:02:53.4]} 8. O-O {[%clk 0:02:58.2]}
8... Re8 {[%clk 0:02:51.9]} 9. h3 {[%clk 0:02:58.3]} 9... Bh5 {[%clk 0:02:50]}
10. c4 {[%clk 0:02:58.1]} 10... c6 {[%clk 0:02:50]} 11. Rc1 {[%clk 0:02:57.6]}
11... Rc8 {[%clk 0:02:49.6]} 12. Ne5 {[%clk 0:02:55.1]} 12... Bxe2 {[%clk
0:02:48.3]} 13. Qxe2 {[%clk 0:02:56]} 13... Bf8 {[%clk 0:02:44.4]} 14. f4 {[%clk
0:02:55.3]} 14... c5 {[%clk 0:02:40.7]} 15. g4 {[%clk 0:02:31.7]} 15... Ne4
{[%clk 0:02:30.5]} 16. Nxe4 {[%clk 0:02:29.7]} 16... dxe4 {[%clk 0:02:31.4]} 17.
Rfd1 {[%clk 0:02:15.6]} 17... Nxe5 {[%clk 0:02:21.2]} 18. fxe5 {[%clk
0:02:08.2]} 18... Qh4 {[%clk 0:02:22.1]} 19. Qg2 {[%clk 0:02:07.9]} 19... h5
{[%clk 0:02:16]} 20. gxh5 {[%clk 0:02:05.5]} 20... Qxh5 {[%clk 0:02:16.9]} 21.
Rf1 {[%clk 0:02:01.5]} 21... Rcd8 {[%clk 0:02:12.3]} 22. Rf4 {[%clk 0:01:54.3]}
22... g6 {[%clk 0:02:11.8]} 23. Rxe4 {[%clk 0:01:52.7]} 23... Bh6 {[%clk
0:02:10.6]} 24. Rf1 {[%clk 0:01:51.4]} 24... Re7 {[%clk 0:02:07.7]} 25. Qg4
{[%clk 0:01:27.2]} 25... Qxg4+ {[%clk 0:01:57]} 26. hxg4 {[%clk 0:01:28.1]}
26... Bg5 {[%clk 0:01:55.9]} 27. Kg2 {[%clk 0:01:21.4]} 27... b6 {[%clk
0:01:55.9]} 28. Rd1 {[%clk 0:01:19.7]} 28... Red7 {[%clk 0:01:54.2]} 29. Kf3
{[%clk 0:01:15.7]} 29... Kg7 {[%clk 0:01:54.3]} 30. Rh1 {[%clk 0:01:14.3]} 30...
Rc7 {[%clk 0:01:44.6]} 31. Ke2 {[%clk 0:01:13.6]} 31... Rcd7 {[%clk 0:01:43.1]}
32. Kd3 {[%clk 0:01:13.7]} 32... Rc8 {[%clk 0:01:38.1]} 33. Kc3 {[%clk
0:01:08.9]} 33... Rcd8 {[%clk 0:01:37.3]} 34. a3 {[%clk 0:01:00.4]} 34... a5
{[%clk 0:01:37]} 35. b4 {[%clk 0:00:56.6]} 35... axb4+ {[%clk 0:01:36.9]} 36.
axb4 {[%clk 0:00:56.7]} 36... Kg8 {[%clk 0:01:35]} 37. bxc5 {[%clk 0:00:56.7]}
37... bxc5 {[%clk 0:01:35.4]} 38. Ba3 {[%clk 0:00:57.4]} 38... Rb7 {[%clk
0:01:25.1]} 39. Bxc5 {[%clk 0:00:50]} 39... Rdb8 {[%clk 0:01:25]} 40. Kd3 {[%clk
0:00:50.6]} 40... Rb3+ {[%clk 0:01:24.7]} 41. Ke2 {[%clk 0:00:50.6]} 41... Rc3
{[%clk 0:01:23.6]} 42. Ra1 {[%clk 0:00:25.4]} 42... Rb2+ {[%clk 0:01:19.5]} 43.
Kf3 {[%clk 0:00:25.3]} 43... Rxc4 {[%clk 0:01:19]} 44. Rf1 {[%clk 0:00:14.4]}
44... Rcc2 {[%clk 0:01:15.5]} 45. Ba3 {[%clk 0:00:11.2]} 45... Rb3 {[%clk
0:01:14.9]} 46. Bc5 {[%clk 0:00:09.4]} 46... Rcc3 {[%clk 0:01:15.1]} 47. Re1
{[%clk 0:00:09.7]} 47... Kg7 {[%clk 0:01:11.5]} 48. Bd6 {[%clk 0:00:09.1]} 48...
Rd3 {[%clk 0:01:06.9]} 49. Bc5 {[%clk 0:00:08.8]} 49... Rdc3 {[%clk 0:01:07]}
50. Bd6 {[%clk 0:00:09]} 50... Rd3 {[%clk 0:01:07.3]} 51. Re2 {[%clk 0:00:08.9]}
51... Rdc3 {[%clk 0:01:06.9]} 52. Bc5 {[%clk 0:00:08.9]} 52... Kg8 {[%clk
0:01:06.1]} 53. Re1 {[%clk 0:00:08.6]} 53... Kg7 {[%clk 0:01:06.5]} 1/2-1/2

[Event "Early-Titled-Tuesday-Blitz-January-30-2024"]
[Site "Chess.com"]
[Date "2024.01.30"]
[Round "1"]
[White "Chesstiger64"]
[Black "gshwbedhkhd"]
[Result "0-1"]
[WhiteElo "2206"]
[BlackElo "2589"]
[TimeControl "180+1"]
[EndTime "8:07:02 PST"]
[Termination "gshwbedhkhd won by resignation"]

1. d4 {[%clk 0:02:31.3]} 1... f5 {[%clk 0:02:50.8]} 2. g3 {[%clk 0:02:30.3]}
2... Nf6 {[%clk 0:02:51.2]} 3. Bg2 {[%clk 0:02:30.8]} 3... g6 {[%clk 0:02:51.8]}
4. c4 {[%clk 0:02:28.2]} 4... Bg7 {[%clk 0:02:51.9]} 5. Nc3 {[%clk 0:02:28.8]}
5... O-O {[%clk 0:02:52.1]} 6. Nh3 {[%clk 0:02:29.2]} 6... d6 {[%clk 0:02:50.5]}
7. O-O {[%clk 0:02:29.7]} 7... e5 {[%clk 0:02:49.7]} 8. dxe5 {[%clk 0:02:28.8]}
8... dxe5 {[%clk 0:02:50.6]} 9. Qxd8 {[%clk 0:02:26.9]} 9... Rxd8 {[%clk
0:02:51.5]} 10. b3 {[%clk 0:02:26.9]} 10... Na6 {[%clk 0:02:46.5]} 11. Ba3
{[%clk 0:02:26.6]} 11... c6 {[%clk 0:02:45]} 12. Rad1 {[%clk 0:02:25.7]} 12...
Re8 {[%clk 0:02:45]} 13. Ng5 {[%clk 0:02:18.2]} 13... h6 {[%clk 0:02:43.6]} 14.
Nf3 {[%clk 0:02:18.3]} 14... e4 {[%clk 0:02:41.6]} 15. Nd4 {[%clk 0:02:17.8]}
15... Ng4 {[%clk 0:02:42.1]} 16. e3 {[%clk 0:02:17.4]} 16... Ne5 {[%clk
0:02:39.4]} 17. Rd2 {[%clk 0:02:07.2]} 17... Nd3 {[%clk 0:02:38.2]} 18. Rfd1
{[%clk 0:02:07.2]} 18... Be6 {[%clk 0:02:29.2]} 19. f3 {[%clk 0:02:00.4]} 19...
exf3 {[%clk 0:02:27]} 20. Bxf3 {[%clk 0:01:57.9]} 20... Ne5 {[%clk 0:02:25.4]}
21. Bg2 {[%clk 0:01:58]} 21... Bf7 {[%clk 0:02:25.3]} 22. e4 {[%clk 0:01:53.8]}
22... Ng4 {[%clk 0:02:15.7]} 23. exf5 {[%clk 0:01:41.6]} 23... Ne3 {[%clk
0:02:15]} 24. Re1 {[%clk 0:01:31]} 24... Rad8 {[%clk 0:02:12.6]} 25. Nce2 {[%clk
0:01:16.3]} 25... Nxf5 {[%clk 0:02:06.5]} 26. Red1 {[%clk 0:01:09]} 26... Ne3
{[%clk 0:01:57.6]} 27. Re1 {[%clk 0:01:03.7]} 27... Nxg2 {[%clk 0:01:57.4]} 28.
Kxg2 {[%clk 0:01:01.1]} 28... Bxd4 {[%clk 0:01:56.6]} 29. Red1 {[%clk
0:00:57.3]} 29... Bb6 {[%clk 0:01:54]} 30. Rxd8 {[%clk 0:00:56.1]} 30... Rxd8
{[%clk 0:01:53.4]} 31. Rxd8+ {[%clk 0:00:56.5]} 31... Bxd8 {[%clk 0:01:54]} 32.
Nd4 {[%clk 0:00:56.6]} 32... Bf6 {[%clk 0:01:52.1]} 33. Nf3 {[%clk 0:00:53.4]}
33... Nc7 {[%clk 0:01:50.8]} 34. Bd6 {[%clk 0:00:52]} 34... Ne6 {[%clk
0:01:50.2]} 35. Ne5 {[%clk 0:00:50.7]} 35... Nd4 {[%clk 0:01:40.9]} 36. Nd7
{[%clk 0:00:47.9]} 36... Bd8 {[%clk 0:01:38.4]} 37. Bc5 {[%clk 0:00:45.4]} 37...
Ne2 {[%clk 0:01:32.1]} 38. Bxa7 {[%clk 0:00:44.7]} 38... Nc1 {[%clk 0:01:32.4]}
39. Nc5 {[%clk 0:00:39.5]} 39... b6 {[%clk 0:01:26.2]} 40. Na4 {[%clk
0:00:39.3]} 40... b5 {[%clk 0:01:26.1]} 41. cxb5 {[%clk 0:00:38.8]} 41... cxb5
{[%clk 0:01:27]} 42. Nc3 {[%clk 0:00:38.8]} 42... b4 {[%clk 0:01:26.9]} 43. Ne4
{[%clk 0:00:37.7]} 43... Nxa2 {[%clk 0:01:25.7]} 44. Bc5 {[%clk 0:00:35.5]}
44... Bxb3 {[%clk 0:01:23.9]} 45. h4 {[%clk 0:00:28.1]} 45... Bd5 {[%clk
0:01:20.7]} 46. Kf3 {[%clk 0:00:27.5]} 46... Nc3 {[%clk 0:01:19.1]} 47. Bxb4
{[%clk 0:00:24.7]} 47... Nxe4 {[%clk 0:01:17]} 48. Kg2 {[%clk 0:00:24.2]} 48...
Bc7 {[%clk 0:01:15.8]} 49. Be1 {[%clk 0:00:22.7]} 49... Nxg3+ {[%clk 0:01:14.2]}
50. Kh3 {[%clk 0:00:20.8]} 50... Nh5 {[%clk 0:01:14.2]} 51. Kg4 {[%clk
0:00:20.4]} 51... Kf7 {[%clk 0:01:11.6]} 52. Bd2 {[%clk 0:00:20.5]} 52... Nf6+
{[%clk 0:01:10.9]} 53. Kh3 {[%clk 0:00:19.2]} 53... h5 {[%clk 0:01:10.9]} 54.
Bg5 {[%clk 0:00:18.7]} 54... Ne4 {[%clk 0:01:08.1]} 55. Bf4 {[%clk 0:00:16.4]}
55... Bxf4 {[%clk 0:01:06.9]} 0-1